[Event "Titled Tuesday Blitz March 01 Late 2022"]
[White "Calcada, Lucas Galvan"]
[Black "Mikhalsky, Vladimir"]
[WhiteFideId "22746099"]
[BlackFideId "14144352"]
[WhiteElo "1402"]
[BlackElo "2248"]
[Result "1-0"]
[Round "07"]
[TimeControl "180+1"]
[Date "2022.03.02"]
[WhiteClock "0:00:20"]
[BlackClock "0:00:07"]

1. e4 {[%clk 0:03:00]}  c5 {[%clk 0:02:57]} 2. Nf3 {[%clk 0:03:00]}  Nc6 {[%clk 0:02:57]} 3. d4 {[%clk 0:02:38]}  cxd4 {[%clk 0:02:56]} 4. Nxd4 {[%clk 0:02:39]}  Nf6 {[%clk 0:02:56]} 5. Nc3 {[%clk 0:02:29]}  e5 {[%clk 0:02:56]} 6. Ndb5 {[%clk 0:02:28]}  d6 {[%clk 0:02:55]} 7. Nd5 {[%clk 0:02:27]}  Nxd5 {[%clk 0:02:54]} 8. exd5 {[%clk 0:02:27]}  Ne7 {[%clk 0:02:54]} 9. c3 {[%clk 0:02:27]}  Ng6 {[%clk 0:02:49]} 10. a4 {[%clk 0:02:27]}  Be7 {[%clk 0:02:46]} 11. Be3 {[%clk 0:02:24]}  a6 {[%clk 0:02:45]} 12. Na3 {[%clk 0:02:24]}  f5 {[%clk 0:02:44]} 13. f3 {[%clk 0:02:22]}  Bh4+ {[%clk 0:02:37]} 14. g3 {[%clk 0:02:20]}  f4 {[%clk 0:02:36]} 15. Bf2 {[%clk 0:02:15]}  fxg3 {[%clk 0:02:35]} 16. hxg3 {[%clk 0:02:14]}  Bg5 {[%clk 0:02:35]} 17. Nc4 {[%clk 0:02:09]}  O-O {[%clk 0:02:33]} 18. Bg2 {[%clk 0:02:01]}  Qc7 {[%clk 0:02:20]} 19. Nb6 {[%clk 0:01:58]}  Rb8 {[%clk 0:02:14]} 20. a5 {[%clk 0:01:57]}  e4 {[%clk 0:02:07]} 21. f4 {[%clk 0:01:47]}  e3 {[%clk 0:02:02]} 22. Bxe3 {[%clk 0:01:46]}  Re8 {[%clk 0:02:02]} 23. Kf2 {[%clk 0:01:45]}  Bf6 {[%clk 0:01:27]} 24. Qh5 {[%clk 0:01:38]}  Rxe3 {[%clk 0:01:22]} 25. Qxh7+ {[%clk 0:01:32]}  Kf7 {[%clk 0:01:22]} 26. Kxe3 {[%clk 0:01:29]}  Qc5+ {[%clk 0:01:21]} 27. Kf3 {[%clk 0:01:25]}  Bf5 {[%clk 0:01:08]} 28. Qh5 {[%clk 0:01:19]}  Be4+ {[%clk 0:00:56]} 29. Kxe4 {[%clk 0:00:59]}  Qf2 {[%clk 0:00:54]} 30. Qf3 {[%clk 0:00:48]}  Re8+ {[%clk 0:00:47]} 31. Kf5 {[%clk 0:00:48]}  Qc2+ {[%clk 0:00:24]} 32. Kg4 {[%clk 0:00:47]}  Qxb2 {[%clk 0:00:18]} 33. Rae1 {[%clk 0:00:41]}  Rf8 {[%clk 0:00:13]} 34. Qe4 {[%clk 0:00:38]}  Ne7 {[%clk 0:00:11]} 35. Qe6+ {[%clk 0:00:35]}  Ke8 {[%clk 0:00:09]} 36. Be4 {[%clk 0:00:22]}  Qxc3 {[%clk 0:00:09]} 37. Bg6+ {[%clk 0:00:21]}  Kd8 {[%clk 0:00:07]} 38. Qd7# {[%clk 0:00:20]} 1-0


[Site "https://www.chess.com"]

[Event "Titled Tuesday Blitz March 01 Late 2022"]
[White "Chernomordik, Pavel"]
[Black "Guz, Ari"]
[WhiteFideId "2804530"]
[BlackFideId "2825759"]
[WhiteElo "2431"]
[BlackElo "2572"]
[Result "1-0"]
[Round "07"]
[TimeControl "180+1"]
[Date "2022.03.02"]
[WhiteClock "0:00:08"]
[BlackClock "0:00:11"]

1. e4 {[%clk 0:02:44]}  c5 {[%clk 0:02:55]} 2. Nc3 {[%clk 0:02:43]}  e6 {[%clk 0:02:56]} 3. f4 {[%clk 0:02:42]}  b6 {[%clk 0:02:55]} 4. Nf3 {[%clk 0:02:42]}  Bb7 {[%clk 0:02:56]} 5. d4 {[%clk 0:02:37]}  cxd4 {[%clk 0:02:56]} 6. Nxd4 {[%clk 0:02:36]}  Nc6 {[%clk 0:02:56]} 7. Ndb5 {[%clk 0:02:35]}  a6 {[%clk 0:02:54]} 8. Nd6+ {[%clk 0:02:35]}  Bxd6 {[%clk 0:02:55]} 9. Qxd6 {[%clk 0:02:34]}  Nge7 {[%clk 0:02:54]} 10. Be3 {[%clk 0:02:32]}  Nc8 {[%clk 0:02:52]} 11. Qd2 {[%clk 0:02:29]}  O-O {[%clk 0:02:48]} 12. O-O-O {[%clk 0:02:28]}  d6 {[%clk 0:02:48]} 13. h4 {[%clk 0:02:24]}  Qc7 {[%clk 0:02:44]} 14. h5 {[%clk 0:02:23]}  b5 {[%clk 0:02:34]} 15. h6 {[%clk 0:02:21]}  g6 {[%clk 0:02:34]} 16. f5 {[%clk 0:02:21]}  b4 {[%clk 0:02:29]} 17. Na4 {[%clk 0:02:17]}  Qa5 {[%clk 0:02:29]} 18. b3 {[%clk 0:02:16]}  Qe5 {[%clk 0:02:29]} 19. Kb1 {[%clk 0:02:13]}  Qxe4 {[%clk 0:02:24]} 20. Bd3 {[%clk 0:02:12]}  Qg4 {[%clk 0:02:24]} 21. fxg6 {[%clk 0:01:58]}  fxg6 {[%clk 0:02:25]} 22. Qe1 {[%clk 0:01:52]}  Ne5 {[%clk 0:02:18]} 23. Rh4 {[%clk 0:01:48]}  Qxg2 {[%clk 0:02:14]} 24. Qxb4 {[%clk 0:01:43]}  Bf3 {[%clk 0:02:05]} 25. Rg1 {[%clk 0:01:35]}  Nxd3 {[%clk 0:02:03]} 26. Qc3 {[%clk 0:01:24]}  Qxg1+ {[%clk 0:01:52]} 27. Bxg1 {[%clk 0:01:23]}  Ne5 {[%clk 0:01:53]} 28. Qc7 {[%clk 0:01:17]}  Rf7 {[%clk 0:01:51]} 29. Qd8+ {[%clk 0:01:11]}  Rf8 {[%clk 0:01:47]} 30. Qg5 {[%clk 0:01:01]}  Bd5 {[%clk 0:01:32]} 31. Rf4 {[%clk 0:01:00]}  Rxf4 {[%clk 0:00:48]} 32. Qxf4 {[%clk 0:00:59]}  Nf7 {[%clk 0:00:37]} 33. Qf6 {[%clk 0:00:51]}  Nxh6 {[%clk 0:00:36]} 34. Qd8+ {[%clk 0:00:47]}  Kf7 {[%clk 0:00:32]} 35. Bd4 {[%clk 0:00:42]}  e5 {[%clk 0:00:31]} 36. Bxe5 {[%clk 0:00:41]}  Nf5 {[%clk 0:00:22]} 37. Qf6+ {[%clk 0:00:35]}  Ke8 {[%clk 0:00:22]} 38. Qh8+ {[%clk 0:00:32]}  Kd7 {[%clk 0:00:21]} 39. Qxh7+ {[%clk 0:00:31]}  Nfe7 {[%clk 0:00:21]} 40. Bd4 {[%clk 0:00:27]}  Rb8 {[%clk 0:00:21]} 41. Nc3 {[%clk 0:00:23]}  Be6 {[%clk 0:00:20]} 42. Qh1 {[%clk 0:00:20]}  Rb4 {[%clk 0:00:18]} 43. Qg1 {[%clk 0:00:18]}  a5 {[%clk 0:00:18]} 44. a3 {[%clk 0:00:18]}  Rb7 {[%clk 0:00:17]} 45. Ne4 {[%clk 0:00:18]}  a4 {[%clk 0:00:17]} 46. Nf6+ {[%clk 0:00:18]}  Kc7 {[%clk 0:00:16]} 47. b4 {[%clk 0:00:18]}  Nb6 {[%clk 0:00:16]} 48. Ne8+ {[%clk 0:00:17]}  Kd7 {[%clk 0:00:16]} 49. Bxb6 {[%clk 0:00:16]}  Kxe8 {[%clk 0:00:16]} 50. Be3 {[%clk 0:00:16]}  Kd7 {[%clk 0:00:15]} 51. Qg5 {[%clk 0:00:16]}  Rc7 {[%clk 0:00:15]} 52. Qa5 {[%clk 0:00:15]}  Rc3 {[%clk 0:00:15]} 53. Qxa4+ {[%clk 0:00:15]}  Kc8 {[%clk 0:00:15]} 54. Bd2 {[%clk 0:00:15]}  Rg3 {[%clk 0:00:15]} 55. Qe8+ {[%clk 0:00:14]}  Kc7 {[%clk 0:00:14]} 56. Qxe7+ {[%clk 0:00:14]}  Bd7 {[%clk 0:00:15]} 57. Bf4 {[%clk 0:00:14]}  Rg1+ {[%clk 0:00:14]} 58. Kb2 {[%clk 0:00:14]}  Rd1 {[%clk 0:00:15]} 59. b5 {[%clk 0:00:14]}  Rd5 {[%clk 0:00:14]} 60. c4 {[%clk 0:00:13]}  Rd4 {[%clk 0:00:13]} 61. Qe3 {[%clk 0:00:10]}  Rxc4 {[%clk 0:00:13]} 62. a4 {[%clk 0:00:10]}  Rxa4 {[%clk 0:00:13]} 63. Qc5+ {[%clk 0:00:10]}  Kd8 {[%clk 0:00:12]} 64. Bxd6 {[%clk 0:00:09]}  Ra8 {[%clk 0:00:11]} 65. Qc7+ {[%clk 0:00:09]}  Ke8 {[%clk 0:00:11]} 66. b6 {[%clk 0:00:09]}  Rc8 {[%clk 0:00:11]} 67. b7 {[%clk 0:00:08]}  Rxc7 {[%clk 0:00:11]} 68. Bxc7 {[%clk 0:00:08]} 1-0


[Site "https://www.chess.com"]

[Event "Titled Tuesday Blitz March 01 Late 2022"]
[White "Clawitter, Craig"]
[Black "Desideri, Ricardo Maruchi"]
[WhiteFideId "2023105"]
[BlackFideId "2110440"]
[WhiteElo "2224"]
[BlackElo "1945"]
[Result "1-0"]
[Round "07"]
[TimeControl "180+1"]
[Date "2022.03.02"]
[WhiteClock "0:00:09"]
[BlackClock "0:00:19"]

1. e4 {[%clk 0:03:00]}  c5 {[%clk 0:02:59]} 2. Nf3 {[%clk 0:03:00]}  d6 {[%clk 0:02:59]} 3. d4 {[%clk 0:03:00]}  cxd4 {[%clk 0:03:00]} 4. Nxd4 {[%clk 0:03:01]}  Nf6 {[%clk 0:03:00]} 5. Nc3 {[%clk 0:03:02]}  a6 {[%clk 0:03:00]} 6. Be3 {[%clk 0:03:01]}  e6 {[%clk 0:02:58]} 7. f4 {[%clk 0:03:01]}  Qc7 {[%clk 0:02:54]} 8. Qf3 {[%clk 0:02:59]}  b5 {[%clk 0:02:53]} 9. O-O-O {[%clk 0:02:52]}  Nbd7 {[%clk 0:02:51]} 10. a3 {[%clk 0:02:45]}  Bb7 {[%clk 0:02:51]} 11. Kb1 {[%clk 0:02:37]}  Rc8 {[%clk 0:02:50]} 12. g4 {[%clk 0:02:34]}  Nc5 {[%clk 0:02:45]} 13. Bd3 {[%clk 0:02:30]}  Be7 {[%clk 0:02:29]} 14. g5 {[%clk 0:02:29]}  Nfd7 {[%clk 0:02:29]} 15. f5 {[%clk 0:02:15]}  Ne5 {[%clk 0:02:26]} 16. Qh3 {[%clk 0:02:04]}  Nexd3 {[%clk 0:01:58]} 17. cxd3 {[%clk 0:01:56]}  e5 {[%clk 0:01:56]} 18. Nde2 {[%clk 0:01:30]}  f6 {[%clk 0:01:21]} 19. Qh5+ {[%clk 0:01:07]}  Kd7 {[%clk 0:01:18]} 20. Bxc5 {[%clk 0:00:52]}  Qxc5 {[%clk 0:01:15]} 21. d4 {[%clk 0:00:50]}  Bxe4+ {[%clk 0:01:04]} 22. Nxe4 {[%clk 0:00:19]}  Qc2+ {[%clk 0:01:04]} 23. Ka1 {[%clk 0:00:20]}  Qxe4 {[%clk 0:01:04]} 24. Ng3 {[%clk 0:00:15]}  Qc6 {[%clk 0:00:58]} 25. dxe5 {[%clk 0:00:14]}  fxe5 {[%clk 0:00:57]} 26. Qf7 {[%clk 0:00:14]}  Rhf8 {[%clk 0:00:51]} 27. Qe6+ {[%clk 0:00:13]}  Ke8 {[%clk 0:00:48]} 28. f6 {[%clk 0:00:13]}  gxf6 {[%clk 0:00:47]} 29. Nf5 {[%clk 0:00:14]}  Qd7 {[%clk 0:00:25]} 30. Nxd6+ {[%clk 0:00:12]}  Kd8 {[%clk 0:00:19]} 31. Nxc8 {[%clk 0:00:09]} 1-0


[Site "https://www.chess.com"]

[Event "Titled Tuesday Blitz March 01 Late 2022"]
[White "Dias, Joao Batista"]
[Black "Glavina, Pablo"]
[WhiteFideId "2108240"]
[BlackFideId "100234"]
[WhiteElo "1898"]
[BlackElo "2369"]
[Result "0-1"]
[Round "07"]
[TimeControl "180+1"]
[Date "2022.03.02"]
[WhiteClock "0:00:04"]
[BlackClock "0:00:05"]

1. e4 {[%clk 0:03:00]}  e5 {[%clk 0:02:59]} 2. Nf3 {[%clk 0:03:00]}  Nc6 {[%clk 0:02:59]} 3. d4 {[%clk 0:02:59]}  exd4 {[%clk 0:02:59]} 4. Nxd4 {[%clk 0:02:59]}  Nf6 {[%clk 0:02:54]} 5. Nxc6 {[%clk 0:02:59]}  bxc6 {[%clk 0:02:53]} 6. Bd3 {[%clk 0:02:59]}  d5 {[%clk 0:02:37]} 7. Nc3 {[%clk 0:02:53]}  Bb4 {[%clk 0:02:32]} 8. exd5 {[%clk 0:02:52]}  O-O {[%clk 0:02:03]} 9. dxc6 {[%clk 0:02:47]}  Re8+ {[%clk 0:02:03]} 10. Be2 {[%clk 0:02:44]}  Ba6 {[%clk 0:01:55]} 11. Be3 {[%clk 0:02:43]}  Bxe2 {[%clk 0:01:37]} 12. Qxe2 {[%clk 0:02:42]}  Nd5 {[%clk 0:01:34]} 13. O-O {[%clk 0:02:39]}  Bxc3 {[%clk 0:01:32]} 14. bxc3 {[%clk 0:02:39]}  Nxc3 {[%clk 0:01:30]} 15. Qc4 {[%clk 0:02:36]}  Qf6 {[%clk 0:01:31]} 16. Rae1 {[%clk 0:02:32]}  Re4 {[%clk 0:01:24]} 17. Qd3 {[%clk 0:02:18]}  Rd8 {[%clk 0:01:18]} 18. Qa6 {[%clk 0:02:11]}  Ra4 {[%clk 0:01:10]} 19. Qb7 {[%clk 0:02:06]}  Rc4 {[%clk 0:00:59]} 20. Qxc7 {[%clk 0:02:02]}  Rxc6 {[%clk 0:00:58]} 21. Qxa7 {[%clk 0:02:00]}  Ra6 {[%clk 0:00:52]} 22. Qc7 {[%clk 0:01:58]}  Rxa2 {[%clk 0:00:47]} 23. Bb6 {[%clk 0:01:48]}  Rf8 {[%clk 0:00:41]} 24. Bc5 {[%clk 0:01:47]}  Rfa8 {[%clk 0:00:30]} 25. Qd6 {[%clk 0:01:14]}  Qxd6 {[%clk 0:00:20]} 26. Bxd6 {[%clk 0:01:12]}  Rxc2 {[%clk 0:00:21]} 27. g3 {[%clk 0:01:06]}  h6 {[%clk 0:00:21]} 28. Kg2 {[%clk 0:01:05]}  Rc8 {[%clk 0:00:18]} 29. Rc1 {[%clk 0:01:00]}  Ne4 {[%clk 0:00:15]} 30. Rxc2 {[%clk 0:00:59]}  Rxc2 {[%clk 0:00:16]} 31. Bf4 {[%clk 0:00:55]}  g5 {[%clk 0:00:15]} 32. Be3 {[%clk 0:00:55]}  f5 {[%clk 0:00:13]} 33. Kf3 {[%clk 0:00:44]}  Kf7 {[%clk 0:00:04]} 34. h3 {[%clk 0:00:42]}  Kg6 {[%clk 0:00:03]} 35. g4 {[%clk 0:00:38]}  Nd2+ {[%clk 0:00:02]} 36. Kg2 {[%clk 0:00:36]}  Nxf1 {[%clk 0:00:02]} 37. gxf5+ {[%clk 0:00:36]}  Kxf5 {[%clk 0:00:02]} 38. Kxf1 {[%clk 0:00:36]}  Ke4 {[%clk 0:00:02]} 39. Kg2 {[%clk 0:00:35]}  Kf5 {[%clk 0:00:01]} 40. Kf3 {[%clk 0:00:34]}  Kg6 {[%clk 0:00:02]} 41. Kg4 {[%clk 0:00:33]}  Ra2 {[%clk 0:00:03]} 42. Kf3 {[%clk 0:00:31]}  Ra1 {[%clk 0:00:04]} 43. Kg4 {[%clk 0:00:31]}  Rh1 {[%clk 0:00:04]} 44. Kg3 {[%clk 0:00:30]}  h5 {[%clk 0:00:04]} 45. Kg2 {[%clk 0:00:30]}  Rb1 {[%clk 0:00:04]} 46. Kg3 {[%clk 0:00:30]}  Kf5 {[%clk 0:00:04]} 47. Kf3 {[%clk 0:00:30]}  h4 {[%clk 0:00:05]} 48. Kg2 {[%clk 0:00:29]}  Rb3 {[%clk 0:00:06]} 49. Kf3 {[%clk 0:00:29]}  Ra3 {[%clk 0:00:06]} 50. Kg2 {[%clk 0:00:28]}  g4 {[%clk 0:00:06]} 51. hxg4+ {[%clk 0:00:28]}  Kxg4 {[%clk 0:00:07]} 52. Kh2 {[%clk 0:00:28]}  Kf3 {[%clk 0:00:07]} 53. Bc5 {[%clk 0:00:27]}  Ra2 {[%clk 0:00:06]} 54. Kh3 {[%clk 0:00:24]}  Ra4 {[%clk 0:00:06]} 55. Kh2 {[%clk 0:00:22]}  Kg4 {[%clk 0:00:07]} 56. Be3 {[%clk 0:00:21]}  Ra8 {[%clk 0:00:06]} 57. Bc5 {[%clk 0:00:20]}  Re8 {[%clk 0:00:06]} 58. Kg2 {[%clk 0:00:19]}  Re6 {[%clk 0:00:05]} 59. Be3 {[%clk 0:00:17]}  Rf6 {[%clk 0:00:04]} 60. Kh2 {[%clk 0:00:16]}  Rf3 {[%clk 0:00:04]} 61. Kg2 {[%clk 0:00:16]}  Rf7 {[%clk 0:00:02]} 62. Kh2 {[%clk 0:00:15]}  Rh7 {[%clk 0:00:03]} 63. Kg2 {[%clk 0:00:15]}  Kf5 {[%clk 0:00:03]} 64. Kh3 {[%clk 0:00:15]}  Ke4 {[%clk 0:00:04]} 65. Bc5 {[%clk 0:00:13]}  Kf3 {[%clk 0:00:04]} 66. Be3 {[%clk 0:00:13]}  Rh8 {[%clk 0:00:02]} 67. Bd4 {[%clk 0:00:13]}  Rh7 {[%clk 0:00:03]} 68. Be3 {[%clk 0:00:12]}  Ke4 {[%clk 0:00:03]} 69. Bb6 {[%clk 0:00:12]}  Kf5 {[%clk 0:00:04]} 70. Be3 {[%clk 0:00:12]}  Kg6 {[%clk 0:00:04]} 71. Bc5 {[%clk 0:00:11]}  Kh5 {[%clk 0:00:05]} 72. Bb6 {[%clk 0:00:10]}  Rf7 {[%clk 0:00:05]} 73. Be3 {[%clk 0:00:09]}  Rf3+ {[%clk 0:00:05]} 74. Kg2 {[%clk 0:00:09]}  Kg4 {[%clk 0:00:06]} 75. Bb6 {[%clk 0:00:08]}  h3+ {[%clk 0:00:06]} 76. Kh2 {[%clk 0:00:07]}  Rf6 {[%clk 0:00:07]} 77. Be3 {[%clk 0:00:06]}  Rf7 {[%clk 0:00:07]} 78. Bc5 {[%clk 0:00:06]}  Rh7 {[%clk 0:00:08]} 79. Be3 {[%clk 0:00:06]}  Kf3 {[%clk 0:00:08]} 80. Bb6 {[%clk 0:00:06]}  Ke2 {[%clk 0:00:08]} 81. Be3 {[%clk 0:00:06]}  Kf3 {[%clk 0:00:08]} 82. Bc5 {[%clk 0:00:06]}  Kg4 {[%clk 0:00:09]} 83. Be3 {[%clk 0:00:07]}  Kh4 {[%clk 0:00:09]} 84. Bc5 {[%clk 0:00:07]}  Rg7 {[%clk 0:00:09]} 85. Be3 {[%clk 0:00:07]}  Rg2+ {[%clk 0:00:10]} 86. Kh1 {[%clk 0:00:07]}  Kg4 {[%clk 0:00:10]} 87. Bd4 {[%clk 0:00:06]}  Kf3 {[%clk 0:00:10]} 88. Bb6 {[%clk 0:00:06]}  Ke2 {[%clk 0:00:08]} 89. Bd4 {[%clk 0:00:06]}  Kf1 {[%clk 0:00:08]} 90. Bb6 {[%clk 0:00:05]}  h2 {[%clk 0:00:09]} 91. Bc7 {[%clk 0:00:03]}  Kxf2 {[%clk 0:00:05]} 92. Bxh2 {[%clk 0:00:02]}  Rg4 {[%clk 0:00:03]} 93. Bg1+ {[%clk 0:00:02]}  Rxg1+ {[%clk 0:00:03]} 94. Kh2 {[%clk 0:00:01]}  Rg8 {[%clk 0:00:03]} 95. Kh3 {[%clk 0:00:01]}  Kf3 {[%clk 0:00:03]} 96. Kh4 {[%clk 0:00:02]}  Rg1 {[%clk 0:00:03]} 97. Kh5 {[%clk 0:00:03]}  Kf4 {[%clk 0:00:03]} 98. Kh6 {[%clk 0:00:04]}  Kf5 {[%clk 0:00:04]} 99. Kh7 {[%clk 0:00:05]}  Kf6 {[%clk 0:00:04]} 100. Kh8 {[%clk 0:00:04]}  Kf7 {[%clk 0:00:05]} 0-1


[Site "https://www.chess.com"]

[Event "Titled Tuesday Blitz March 01 Late 2022"]
[White "Dobre, Claudiu-Cristian"]
[Black "Shuvalova, Polina"]
[WhiteFideId "1211854"]
[BlackFideId "24171760"]
[WhiteElo "2207"]
[BlackElo "2355"]
[Result "0-1"]
[Round "07"]
[TimeControl "180+1"]
[Date "2022.03.01"]
[WhiteClock "0:00:20"]
[BlackClock "0:00:17"]

1. c4 {[%clk 0:03:00]}  e6 {[%clk 0:02:58]} 2. Nf3 {[%clk 0:02:59]}  d5 {[%clk 0:02:57]} 3. cxd5 {[%clk 0:02:59]}  exd5 {[%clk 0:02:27]} 4. d4 {[%clk 0:02:59]}  c6 {[%clk 0:02:20]} 5. Nc3 {[%clk 0:02:58]}  Bd6 {[%clk 0:02:19]} 6. Qc2 {[%clk 0:02:56]}  g6 {[%clk 0:02:16]} 7. Bg5 {[%clk 0:02:49]}  Be7 {[%clk 0:02:09]} 8. Bxe7 {[%clk 0:02:40]}  Qxe7 {[%clk 0:02:06]} 9. e3 {[%clk 0:02:39]}  Bf5 {[%clk 0:02:04]} 10. Bd3 {[%clk 0:02:38]}  Bxd3 {[%clk 0:02:04]} 11. Qxd3 {[%clk 0:02:38]}  Nd7 {[%clk 0:02:05]} 12. O-O {[%clk 0:02:37]}  Ngf6 {[%clk 0:02:05]} 13. b4 {[%clk 0:02:34]}  a6 {[%clk 0:02:03]} 14. a4 {[%clk 0:02:33]}  b5 {[%clk 0:01:54]} 15. axb5 {[%clk 0:02:31]}  cxb5 {[%clk 0:01:48]} 16. Nxb5 {[%clk 0:02:30]}  O-O {[%clk 0:01:43]} 17. Nc7 {[%clk 0:02:29]}  Ra7 {[%clk 0:01:39]} 18. Nxa6 {[%clk 0:02:29]}  Rfa8 {[%clk 0:01:38]} 19. b5 {[%clk 0:02:29]}  Nb6 {[%clk 0:01:35]} 20. Nd2 {[%clk 0:02:28]}  Qd6 {[%clk 0:01:26]} 21. h3 {[%clk 0:02:25]}  Kg7 {[%clk 0:01:23]} 22. Qa3 {[%clk 0:02:18]}  Qd7 {[%clk 0:01:22]} 23. Qc5 {[%clk 0:02:18]}  Rb7 {[%clk 0:01:20]} 24. Qc6 {[%clk 0:02:12]}  Qe7 {[%clk 0:01:18]} 25. Nc5 {[%clk 0:02:06]}  Rxa1 {[%clk 0:01:16]} 26. Rxa1 {[%clk 0:02:05]}  Rb8 {[%clk 0:01:16]} 27. Ra6 {[%clk 0:02:00]}  Nc4 {[%clk 0:01:14]} 28. Nxc4 {[%clk 0:01:54]}  dxc4 {[%clk 0:01:14]} 29. b6 {[%clk 0:01:44]}  c3 {[%clk 0:01:11]} 30. b7 {[%clk 0:01:43]}  c2 {[%clk 0:01:06]} 31. Ra1 {[%clk 0:01:42]}  Ne8 {[%clk 0:00:59]} 32. Qa4 {[%clk 0:01:36]}  Nd6 {[%clk 0:00:56]} 33. Qxc2 {[%clk 0:01:36]}  Nxb7 {[%clk 0:00:57]} 34. Rb1 {[%clk 0:01:34]}  Rc8 {[%clk 0:00:55]} 35. Qb2 {[%clk 0:01:32]}  Nxc5 {[%clk 0:00:53]} 36. dxc5+ {[%clk 0:01:31]}  Kh6 {[%clk 0:00:53]} 37. Qd4 {[%clk 0:01:09]}  Rxc5 {[%clk 0:00:46]} 38. g3 {[%clk 0:01:07]}  Qe5 {[%clk 0:00:45]} 39. Qh4+ {[%clk 0:01:04]}  Kg7 {[%clk 0:00:43]} 40. Rb7 {[%clk 0:01:03]}  Rc1+ {[%clk 0:00:40]} 41. Kh2 {[%clk 0:01:02]}  Rc2 {[%clk 0:00:36]} 42. Kg1 {[%clk 0:00:34]}  Rc1+ {[%clk 0:00:29]} 43. Kh2 {[%clk 0:00:33]}  Rc2 {[%clk 0:00:29]} 44. Kg1 {[%clk 0:00:32]}  Rd2 {[%clk 0:00:26]} 45. Qf4 {[%clk 0:00:26]}  Rd1+ {[%clk 0:00:20]} 46. Kh2 {[%clk 0:00:24]}  Qd5 {[%clk 0:00:19]} 47. e4 {[%clk 0:00:23]}  Qxb7 {[%clk 0:00:19]} 48. Qf3 {[%clk 0:00:22]}  Rd7 {[%clk 0:00:19]} 49. Qc3+ {[%clk 0:00:21]}  Kg8 {[%clk 0:00:18]} 50. Qe5 {[%clk 0:00:20]}  Re7 {[%clk 0:00:17]} 0-1


[Site "https://www.chess.com"]

[Event "Titled Tuesday Blitz March 01 Late 2022"]
[White "Erdogdu, Mert"]
[Black "Yurtseven, Melih"]
[WhiteFideId "6301495"]
[BlackFideId "6312160"]
[WhiteElo "2717"]
[BlackElo "2524"]
[Result "0-1"]
[Round "07"]
[TimeControl "180+1"]
[Date "2022.03.02"]
[WhiteClock "0:00:02"]
[BlackClock "0:00:12"]

1. e4 {[%clk 0:03:00]}  c6 {[%clk 0:02:55]} 2. d4 {[%clk 0:02:59]}  d5 {[%clk 0:02:55]} 3. e5 {[%clk 0:03:00]}  Na6 {[%clk 0:02:55]} 4. Nd2 {[%clk 0:02:58]}  Nc7 {[%clk 0:02:53]} 5. Nb3 {[%clk 0:02:53]}  g6 {[%clk 0:02:53]} 6. f4 {[%clk 0:02:47]}  h5 {[%clk 0:02:50]} 7. Bd3 {[%clk 0:02:42]}  Nh6 {[%clk 0:02:49]} 8. Nf3 {[%clk 0:02:40]}  Bf5 {[%clk 0:02:49]} 9. O-O {[%clk 0:02:37]}  Bxd3 {[%clk 0:02:48]} 10. Qxd3 {[%clk 0:02:36]}  e6 {[%clk 0:02:49]} 11. Be3 {[%clk 0:02:35]}  Nf5 {[%clk 0:02:49]} 12. Bf2 {[%clk 0:02:34]}  Be7 {[%clk 0:02:49]} 13. Nbd2 {[%clk 0:02:28]}  Kf8 {[%clk 0:02:45]} 14. b3 {[%clk 0:02:28]}  Kg7 {[%clk 0:02:21]} 15. Rad1 {[%clk 0:02:20]}  a5 {[%clk 0:02:20]} 16. a4 {[%clk 0:01:55]}  b5 {[%clk 0:02:20]} 17. g3 {[%clk 0:01:54]}  bxa4 {[%clk 0:02:08]} 18. bxa4 {[%clk 0:01:53]}  Na6 {[%clk 0:02:09]} 19. c3 {[%clk 0:01:51]}  c5 {[%clk 0:02:09]} 20. h3 {[%clk 0:01:47]}  Qd7 {[%clk 0:02:08]} 21. Kg2 {[%clk 0:01:36]}  cxd4 {[%clk 0:02:04]} 22. cxd4 {[%clk 0:01:31]}  Nb4 {[%clk 0:01:43]} 23. Qb3 {[%clk 0:01:03]}  Rac8 {[%clk 0:01:40]} 24. Rh1 {[%clk 0:00:58]}  Rc7 {[%clk 0:01:38]} 25. g4 {[%clk 0:00:56]}  Nh6 {[%clk 0:01:37]} 26. gxh5 {[%clk 0:00:47]}  Rhc8 {[%clk 0:01:37]} 27. hxg6 {[%clk 0:00:46]}  Rc3 {[%clk 0:01:38]} 28. Qb1 {[%clk 0:00:43]}  fxg6 {[%clk 0:01:34]} 29. Rhg1 {[%clk 0:00:43]}  Nf5 {[%clk 0:01:33]} 30. Kh2 {[%clk 0:00:41]}  Qxa4 {[%clk 0:01:26]} 31. Rg2 {[%clk 0:00:34]}  Kf7 {[%clk 0:01:09]} 32. Rdg1 {[%clk 0:00:30]}  Rg8 {[%clk 0:01:10]} 33. Qf1 {[%clk 0:00:21]}  Qc2 {[%clk 0:01:05]} 34. Qb5 {[%clk 0:00:17]}  a4 {[%clk 0:00:53]} 35. Qd7 {[%clk 0:00:17]}  Kf8 {[%clk 0:00:26]} 36. Qxe6 {[%clk 0:00:14]}  Rc6 {[%clk 0:00:26]} 37. Qd7 {[%clk 0:00:14]}  Nd3 {[%clk 0:00:20]} 38. Be1 {[%clk 0:00:06]}  Nxf4 {[%clk 0:00:19]} 39. Rf2 {[%clk 0:00:02]}  Rh8 {[%clk 0:00:17]} 40. Rg3 {[%clk 0:00:01]}  Nxg3 {[%clk 0:00:16]} 41. Kxg3 {[%clk 0:00:02]}  Nd3 {[%clk 0:00:16]} 42. Rf1 {[%clk 0:00:02]}  Rc7 {[%clk 0:00:11]} 43. Ng5+ {[%clk 0:00:02]}  Kg7 {[%clk 0:00:12]} 44. Rf7+ {[%clk 0:00:02]}  Kh6 {[%clk 0:00:12]} 0-1


[Site "https://www.chess.com"]

[Event "Titled Tuesday Blitz March 01 Late 2022"]
[White "Garriga Cazorla, Pere"]
[Black "Bibasa, Bob"]
[WhiteFideId "32011601"]
[BlackFideId "10000240"]
[WhiteElo "2458"]
[BlackElo "2056"]
[Result "1-0"]
[Round "07"]
[TimeControl "180+1"]
[Date "2022.03.01"]
[WhiteClock "0:00:59"]
[BlackClock "0:00:35"]

1. d4 {[%clk 0:03:00]}  Nf6 {[%clk 0:03:00]} 2. c4 {[%clk 0:02:56]}  e6 {[%clk 0:02:59]} 3. Nc3 {[%clk 0:02:53]}  Bb4 {[%clk 0:02:59]} 4. e3 {[%clk 0:02:49]}  b6 {[%clk 0:02:59]} 5. Bd3 {[%clk 0:02:46]}  Bb7 {[%clk 0:02:59]} 6. Ne2 {[%clk 0:02:46]}  Bxg2 {[%clk 0:02:54]} 7. Rg1 {[%clk 0:02:45]}  Bf3 {[%clk 0:02:54]} 8. Qc2 {[%clk 0:02:44]}  d6 {[%clk 0:02:44]} 9. e4 {[%clk 0:02:42]}  Bxe2 {[%clk 0:02:40]} 10. Qxe2 {[%clk 0:02:41]}  Bxc3+ {[%clk 0:02:41]} 11. bxc3 {[%clk 0:02:42]}  e5 {[%clk 0:02:41]} 12. Rxg7 {[%clk 0:02:42]}  Nbd7 {[%clk 0:02:39]} 13. Bg5 {[%clk 0:02:36]}  Qe7 {[%clk 0:02:36]} 14. Qf3 {[%clk 0:02:32]}  O-O-O {[%clk 0:02:32]} 15. Kd2 {[%clk 0:02:21]}  Rdg8 {[%clk 0:02:30]} 16. Rxg8+ {[%clk 0:02:16]}  Rxg8 {[%clk 0:02:30]} 17. h4 {[%clk 0:02:14]}  Rg6 {[%clk 0:02:20]} 18. Qf5 {[%clk 0:02:08]}  h6 {[%clk 0:02:16]} 19. Be3 {[%clk 0:02:09]}  h5 {[%clk 0:02:02]} 20. Bg5 {[%clk 0:02:06]}  Qe6 {[%clk 0:01:52]} 21. f4 {[%clk 0:01:48]}  Ng4 {[%clk 0:01:34]} 22. Qxe6 {[%clk 0:01:25]}  fxe6 {[%clk 0:01:33]} 23. Rf1 {[%clk 0:01:25]}  exf4 {[%clk 0:01:32]} 24. Rxf4 {[%clk 0:01:24]}  e5 {[%clk 0:01:27]} 25. Rf7 {[%clk 0:01:24]}  Rg8 {[%clk 0:01:15]} 26. c5 {[%clk 0:01:14]}  Nf8 {[%clk 0:00:47]} 27. Ba6+ {[%clk 0:01:08]}  Kb8 {[%clk 0:00:47]} 28. cxd6 {[%clk 0:01:05]}  Ne6 {[%clk 0:00:41]} 29. d5 {[%clk 0:00:59]}  Nxg5 {[%clk 0:00:35]} 30. dxc7+ {[%clk 0:00:58]}  Ka8 {[%clk 0:00:35]} 31. hxg5 {[%clk 0:00:59]} 1-0


[Site "https://www.chess.com"]